[Event "Titled Tuesday Blitz October 04 Late 2022"]
[White "Makarian, Rudik"]
[Black "Liang, Justin"]
[WhiteFideId "44105681"]
[BlackFideId "2099942"]
[WhiteElo "2405"]
[BlackElo "2599"]
[Result "1/2-1/2"]
[Round "03"]
[TimeControl "180+1"]
[Date "2022.10.04"]
[WhiteClock "0:01:58"]
[BlackClock "0:00:59"]

1. b3 {[%clk 0:03:00]}  e5 {[%clk 0:03:00]} 2. Bb2 {[%clk 0:03:01]}  Nc6 {[%clk 0:03:00]} 3. e4 {[%clk 0:03:00]}  Nf6 {[%clk 0:02:55]} 4. Nc3 {[%clk 0:02:58]}  d5 {[%clk 0:02:50]} 5. exd5 {[%clk 0:02:57]}  Nxd5 {[%clk 0:02:51]} 6. Bb5 {[%clk 0:02:55]}  Nxc3 {[%clk 0:02:41]} 7. Bxc3 {[%clk 0:02:55]}  Bd6 {[%clk 0:02:41]} 8. Nf3 {[%clk 0:02:54]}  O-O {[%clk 0:02:39]} 9. Bxc6 {[%clk 0:02:53]}  bxc6 {[%clk 0:02:40]} 10. d3 {[%clk 0:02:52]}  Re8 {[%clk 0:02:37]} 11. Nd2 {[%clk 0:02:51]}  Qg5 {[%clk 0:02:34]} 12. O-O {[%clk 0:02:50]}  Bh3 {[%clk 0:02:22]} 13. Qf3 {[%clk 0:02:49]}  Bd7 {[%clk 0:02:13]} 14. Nc4 {[%clk 0:02:40]}  Re6 {[%clk 0:01:57]} 15. Rae1 {[%clk 0:02:38]}  Rae8 {[%clk 0:01:56]} 16. Qe3 {[%clk 0:02:37]}  Qh5 {[%clk 0:01:48]} 17. Qe2 {[%clk 0:02:25]}  Qf5 {[%clk 0:01:31]} 18. Qe4 {[%clk 0:02:15]}  Qh5 {[%clk 0:01:29]} 19. Qe2 {[%clk 0:02:08]}  Qf5 {[%clk 0:01:28]} 20. Bd2 {[%clk 0:02:07]}  Qg6 {[%clk 0:01:27]} 21. f3 {[%clk 0:02:01]}  f5 {[%clk 0:01:20]} 22. Be3 {[%clk 0:02:01]}  a6 {[%clk 0:01:19]} 23. Bf2 {[%clk 0:01:58]}  Bb4 {[%clk 0:01:18]} 24. Rd1 {[%clk 0:01:58]}  Qf7 {[%clk 0:01:05]} 25. Be1 {[%clk 0:01:57]}  Bc5+ {[%clk 0:01:05]} 26. Bf2 {[%clk 0:01:57]}  Bb4 {[%clk 0:01:05]} 27. Bg3 {[%clk 0:01:58]}  Bc5+ {[%clk 0:00:58]} 28. Bf2 {[%clk 0:01:58]}  Bb4 {[%clk 0:00:59]} 1/2-1/2


[Site "https://www.chess.com"]

[Event "Titled Tuesday Blitz October 04 Late 2022"]
[White "Nakamura, Hikaru"]
[Black "Yanchenko, Roman"]
[WhiteFideId "2016192"]
[BlackFideId "4137329"]
[WhiteElo "2909"]
[BlackElo "2514"]
[Result "1-0"]
[Round "03"]
[TimeControl "180+1"]
[Date "2022.10.04"]
[WhiteClock "0:00:44"]
[BlackClock "0:00:05"]

1. Nf3 {[%clk 0:03:00]}  d5 {[%clk 0:02:56]} 2. g3 {[%clk 0:03:00]}  Nf6 {[%clk 0:02:56]} 3. Bg2 {[%clk 0:03:00]}  Bf5 {[%clk 0:02:54]} 4. c4 {[%clk 0:03:00]}  c6 {[%clk 0:02:54]} 5. cxd5 {[%clk 0:02:59]}  cxd5 {[%clk 0:02:53]} 6. Qb3 {[%clk 0:02:59]}  Qb6 {[%clk 0:02:53]} 7. Qxb6 {[%clk 0:02:52]}  axb6 {[%clk 0:02:52]} 8. Nc3 {[%clk 0:02:53]}  e6 {[%clk 0:02:49]} 9. Nb5 {[%clk 0:02:52]}  Na6 {[%clk 0:02:47]} 10. d3 {[%clk 0:02:50]}  Bb4+ {[%clk 0:02:45]} 11. Bd2 {[%clk 0:02:50]}  Ke7 {[%clk 0:02:44]} 12. a3 {[%clk 0:02:40]}  Bxd2+ {[%clk 0:02:44]} 13. Kxd2 {[%clk 0:02:41]}  Rhc8 {[%clk 0:02:41]} 14. Rhc1 {[%clk 0:02:29]}  Ne8 {[%clk 0:02:32]} 15. Nfd4 {[%clk 0:02:14]}  Bg6 {[%clk 0:02:29]} 16. f4 {[%clk 0:02:14]}  Nac7 {[%clk 0:02:08]} 17. Nxc7 {[%clk 0:02:09]}  Nxc7 {[%clk 0:01:48]} 18. e4 {[%clk 0:02:00]}  dxe4 {[%clk 0:01:41]} 19. dxe4 {[%clk 0:02:00]}  Na6 {[%clk 0:01:21]} 20. b4 {[%clk 0:01:51]}  Rd8 {[%clk 0:00:45]} 21. Ke3 {[%clk 0:01:48]}  Rd7 {[%clk 0:00:44]} 22. Bf1 {[%clk 0:01:28]}  Rad8 {[%clk 0:00:09]} 23. Rc4 {[%clk 0:01:20]}  Nc7 {[%clk 0:00:08]} 24. Rac1 {[%clk 0:01:15]}  Ne8 {[%clk 0:00:08]} 25. e5 {[%clk 0:01:16]}  b5 {[%clk 0:00:03]} 26. Nxb5 {[%clk 0:01:16]}  Bd3 {[%clk 0:00:03]} 27. R4c3 {[%clk 0:01:05]}  Bxf1 {[%clk 0:00:03]} 28. Rxf1 {[%clk 0:01:06]}  Rd5 {[%clk 0:00:03]} 29. a4 {[%clk 0:01:05]}  f6 {[%clk 0:00:04]} 30. Nc7 {[%clk 0:01:01]}  R5d7 {[%clk 0:00:03]} 31. Nxe8 {[%clk 0:01:01]}  Kxe8 {[%clk 0:00:03]} 32. exf6 {[%clk 0:00:59]}  gxf6 {[%clk 0:00:04]} 33. a5 {[%clk 0:00:56]}  Ke7 {[%clk 0:00:05]} 34. b5 {[%clk 0:00:56]}  e5 {[%clk 0:00:05]} 35. fxe5 {[%clk 0:00:56]}  fxe5 {[%clk 0:00:06]} 36. a6 {[%clk 0:00:55]}  bxa6 {[%clk 0:00:06]} 37. bxa6 {[%clk 0:00:56]}  Rd6 {[%clk 0:00:07]} 38. Rc7+ {[%clk 0:00:56]}  Ke6 {[%clk 0:00:07]} 39. a7 {[%clk 0:00:55]}  Rd3+ {[%clk 0:00:07]} 40. Kf2 {[%clk 0:00:56]}  Rd2+ {[%clk 0:00:03]} 41. Kf3 {[%clk 0:00:53]}  Ra2 {[%clk 0:00:04]} 42. Rb1 {[%clk 0:00:51]}  Rf8+ {[%clk 0:00:04]} 43. Kg4 {[%clk 0:00:48]}  Rg8+ {[%clk 0:00:04]} 44. Kh3 {[%clk 0:00:48]}  Ra8 {[%clk 0:00:05]} 45. Rbb7 {[%clk 0:00:46]}  Kd6 {[%clk 0:00:05]} 46. Rxh7 {[%clk 0:00:46]}  e4 {[%clk 0:00:06]} 47. Rbe7 {[%clk 0:00:43]}  Kd5 {[%clk 0:00:05]} 48. Rh5+ {[%clk 0:00:43]}  Kd4 {[%clk 0:00:03]} 49. Rh4 {[%clk 0:00:44]}  R2xa7 {[%clk 0:00:04]} 50. Rhxe4+ {[%clk 0:00:44]}  Kd5 {[%clk 0:00:04]} 51. Rxa7 {[%clk 0:00:44]}  Rxa7 {[%clk 0:00:05]} 52. Re1 {[%clk 0:00:45]}  Rh7+ {[%clk 0:00:05]} 53. Kg2 {[%clk 0:00:44]}  Re7 {[%clk 0:00:05]} 1-0


[Site "https://www.chess.com"]

[Event "Titled Tuesday Blitz October 04 Late 2022"]
[White "Pichot, Alan"]
[Black "Shandrygin, Nikita"]
[WhiteFideId "110973"]
[BlackFideId "24198668"]
[WhiteElo "2578"]
[BlackElo "2323"]
[Result "1-0"]
[Round "03"]
[TimeControl "180+1"]
[Date "2022.10.04"]
[WhiteClock "0:00:12"]
[BlackClock "0:00:01"]

1. e4 {[%clk 0:02:42]}  c5 {[%clk 0:02:59]} 2. Nf3 {[%clk 0:02:40]}  e6 {[%clk 0:02:59]} 3. d4 {[%clk 0:02:39]}  cxd4 {[%clk 0:03:00]} 4. Nxd4 {[%clk 0:02:40]}  Nf6 {[%clk 0:03:01]} 5. Nc3 {[%clk 0:02:40]}  Nc6 {[%clk 0:03:01]} 6. Be2 {[%clk 0:02:40]}  Bb4 {[%clk 0:03:00]} 7. Nxc6 {[%clk 0:02:37]}  bxc6 {[%clk 0:02:57]} 8. O-O {[%clk 0:02:37]}  d5 {[%clk 0:02:45]} 9. Bd3 {[%clk 0:01:59]}  Bxc3 {[%clk 0:02:15]} 10. bxc3 {[%clk 0:02:00]}  dxe4 {[%clk 0:02:15]} 11. Be2 {[%clk 0:02:00]}  O-O {[%clk 0:02:15]} 12. Ba3 {[%clk 0:01:57]}  Re8 {[%clk 0:02:13]} 13. Bc5 {[%clk 0:01:55]}  Nd5 {[%clk 0:01:55]} 14. c4 {[%clk 0:01:47]}  Qa5 {[%clk 0:01:38]} 15. Bd6 {[%clk 0:01:31]}  Nc3 {[%clk 0:01:08]} 16. Qe1 {[%clk 0:01:31]}  Nxe2+ {[%clk 0:01:06]} 17. Qxe2 {[%clk 0:01:32]}  Qf5 {[%clk 0:01:03]} 18. f3 {[%clk 0:01:20]}  e3 {[%clk 0:00:50]} 19. Qxe3 {[%clk 0:01:18]}  Qxc2 {[%clk 0:00:46]} 20. Rfc1 {[%clk 0:01:12]}  Qg6 {[%clk 0:00:46]} 21. Rab1 {[%clk 0:00:28]}  e5 {[%clk 0:00:45]} 22. c5 {[%clk 0:00:28]}  Be6 {[%clk 0:00:28]} 23. Rb4 {[%clk 0:00:24]}  Bxa2 {[%clk 0:00:20]} 24. Rg4 {[%clk 0:00:24]}  Qf6 {[%clk 0:00:19]} 25. Re1 {[%clk 0:00:21]}  e4 {[%clk 0:00:09]} 26. fxe4 {[%clk 0:00:20]}  Be6 {[%clk 0:00:09]} 27. Rg3 {[%clk 0:00:17]}  Qh4 {[%clk 0:00:05]} 28. Rf1 {[%clk 0:00:15]}  Bc4 {[%clk 0:00:04]} 29. Qc3 {[%clk 0:00:13]}  Qh6 {[%clk 0:00:01]} 30. Qxc4 {[%clk 0:00:12]} 1-0


[Site "https://www.chess.com"]

[Event "Titled Tuesday Blitz October 04 Late 2022"]
[White "Rustemov, Alexander"]
[Black "Garagulya, Konstantin"]
[WhiteFideId "4119002"]
[BlackFideId "4128931"]
[WhiteElo "2802"]
[BlackElo "2329"]
[Result "0-1"]
[Round "03"]
[TimeControl "180+1"]
[Date "2022.10.04"]
[WhiteClock "0:00:26"]
[BlackClock "0:00:13"]

1. d4 {[%clk 0:03:00]}  d5 {[%clk 0:02:58]} 2. c4 {[%clk 0:03:01]}  dxc4 {[%clk 0:02:58]} 3. Nf3 {[%clk 0:03:00]}  Nf6 {[%clk 0:02:58]} 4. e3 {[%clk 0:03:00]}  e6 {[%clk 0:02:59]} 5. Bxc4 {[%clk 0:03:01]}  a6 {[%clk 0:03:00]} 6. O-O {[%clk 0:03:01]}  c5 {[%clk 0:03:00]} 7. e4 {[%clk 0:03:02]}  cxd4 {[%clk 0:02:56]} 8. e5 {[%clk 0:03:01]}  Nfd7 {[%clk 0:02:53]} 9. Qxd4 {[%clk 0:03:01]}  Nc6 {[%clk 0:02:53]} 10. Qe4 {[%clk 0:03:00]}  Qc7 {[%clk 0:02:51]} 11. Re1 {[%clk 0:02:56]}  b5 {[%clk 0:02:51]} 12. Bb3 {[%clk 0:02:49]}  Bb7 {[%clk 0:02:50]} 13. Qf4 {[%clk 0:02:34]}  h6 {[%clk 0:02:37]} 14. Nc3 {[%clk 0:02:31]}  g5 {[%clk 0:02:36]} 15. Qg3 {[%clk 0:02:30]}  Bg7 {[%clk 0:02:33]} 16. h4 {[%clk 0:02:27]}  Ncxe5 {[%clk 0:02:24]} 17. Nd4 {[%clk 0:02:16]}  Bf6 {[%clk 0:01:07]} 18. Bxe6 {[%clk 0:01:51]}  fxe6 {[%clk 0:01:02]} 19. Nxe6 {[%clk 0:01:51]}  Qd6 {[%clk 0:00:42]} 20. hxg5 {[%clk 0:01:49]}  Qxe6 {[%clk 0:00:42]} 21. f4 {[%clk 0:01:19]}  hxg5 {[%clk 0:00:41]} 22. fxe5 {[%clk 0:01:17]}  Be7 {[%clk 0:00:41]} 23. Be3 {[%clk 0:01:12]}  O-O-O {[%clk 0:00:38]} 24. Ba7 {[%clk 0:00:52]}  Bc6 {[%clk 0:00:28]} 25. Rac1 {[%clk 0:00:50]}  Kb7 {[%clk 0:00:29]} 26. Bd4 {[%clk 0:00:50]}  Rh4 {[%clk 0:00:25]} 27. Rcd1 {[%clk 0:00:36]}  Rg4 {[%clk 0:00:22]} 28. Qf2 {[%clk 0:00:30]}  Rxg2+ {[%clk 0:00:20]} 29. Qxg2 {[%clk 0:00:30]}  Bxg2 {[%clk 0:00:20]} 30. Kxg2 {[%clk 0:00:31]}  Qg4+ {[%clk 0:00:17]} 31. Kf2 {[%clk 0:00:31]}  Rf8+ {[%clk 0:00:16]} 32. Ke3 {[%clk 0:00:28]}  Rf3+ {[%clk 0:00:14]} 33. Ke2 {[%clk 0:00:29]}  Rxc3+ {[%clk 0:00:13]} 34. Kd2 {[%clk 0:00:28]}  Qxd4+ {[%clk 0:00:11]} 35. Ke2 {[%clk 0:00:26]}  Re3+ {[%clk 0:00:12]} 36. Kf2 {[%clk 0:00:26]}  Qf4+ {[%clk 0:00:12]} 37. Kg2 {[%clk 0:00:26]}  Rg3+ {[%clk 0:00:13]} 38. Kh2 {[%clk 0:00:26]}  Qh4# {[%clk 0:00:13]} 0-1


[Site "https://www.chess.com"]

[Event "Titled Tuesday Blitz October 04 Late 2022"]
[White "Svane, Rasmus"]
[Black "Amburgy, Ryan"]
[WhiteFideId "4657101"]
[BlackFideId "30924820"]
[WhiteElo "2674"]
[BlackElo "2121"]
[Result "1-0"]
[Round "03"]
[TimeControl "180+1"]
[Date "2022.10.04"]
[WhiteClock "0:00:17"]
[BlackClock "0:00:05"]

1. Nf3 {[%clk 0:02:58]}  d5 {[%clk 0:03:00]} 2. g3 {[%clk 0:02:57]}  Nf6 {[%clk 0:03:00]} 3. Bg2 {[%clk 0:02:57]}  g6 {[%clk 0:03:01]} 4. c4 {[%clk 0:02:56]}  dxc4 {[%clk 0:03:01]} 5. Qa4+ {[%clk 0:02:50]}  Nfd7 {[%clk 0:03:01]} 6. Qxc4 {[%clk 0:02:47]}  Bg7 {[%clk 0:03:01]} 7. O-O {[%clk 0:02:46]}  O-O {[%clk 0:03:02]} 8. Rd1 {[%clk 0:02:44]}  Nc6 {[%clk 0:02:59]} 9. d4 {[%clk 0:02:42]}  Nb6 {[%clk 0:02:59]} 10. Qc2 {[%clk 0:02:42]}  Be6 {[%clk 0:02:44]} 11. Nc3 {[%clk 0:02:38]}  Nb4 {[%clk 0:02:43]} 12. Qb1 {[%clk 0:02:37]}  N4d5 {[%clk 0:02:30]} 13. Ne4 {[%clk 0:02:31]}  Bf5 {[%clk 0:02:27]} 14. Nh4 {[%clk 0:02:30]}  Bg4 {[%clk 0:02:22]} 15. Qc2 {[%clk 0:02:26]}  c6 {[%clk 0:02:16]} 16. h3 {[%clk 0:02:26]}  Bc8 {[%clk 0:02:13]} 17. Nc5 {[%clk 0:02:21]}  Nd7 {[%clk 0:02:11]} 18. e4 {[%clk 0:02:15]}  N5f6 {[%clk 0:02:05]} 19. Nd3 {[%clk 0:02:11]}  Qa5 {[%clk 0:01:51]} 20. Be3 {[%clk 0:02:09]}  Nb6 {[%clk 0:01:46]} 21. b3 {[%clk 0:02:06]}  Rd8 {[%clk 0:01:43]} 22. a4 {[%clk 0:01:47]}  Nbd7 {[%clk 0:01:16]} 23. b4 {[%clk 0:01:44]}  Qc7 {[%clk 0:01:16]} 24. Rac1 {[%clk 0:01:44]}  Ne8 {[%clk 0:01:06]} 25. Bf4 {[%clk 0:01:41]}  Qb6 {[%clk 0:01:02]} 26. d5 {[%clk 0:01:21]}  cxd5 {[%clk 0:01:00]} 27. exd5 {[%clk 0:01:22]}  a5 {[%clk 0:00:52]} 28. b5 {[%clk 0:01:18]}  Nd6 {[%clk 0:00:48]} 29. Be3 {[%clk 0:01:15]}  Bd4 {[%clk 0:00:48]} 30. Bg5 {[%clk 0:01:07]}  Nf6 {[%clk 0:00:47]} 31. Nf3 {[%clk 0:01:06]}  Nf5 {[%clk 0:00:38]} 32. g4 {[%clk 0:01:05]}  Ng7 {[%clk 0:00:35]} 33. Nde1 {[%clk 0:00:53]}  e5 {[%clk 0:00:23]} 34. dxe6 {[%clk 0:00:45]}  Nxe6 {[%clk 0:00:23]} 35. Bh4 {[%clk 0:00:38]}  Re8 {[%clk 0:00:15]} 36. Qc4 {[%clk 0:00:28]}  Bb2 {[%clk 0:00:08]} 37. Rc2 {[%clk 0:00:27]}  g5 {[%clk 0:00:07]} 38. Nxg5 {[%clk 0:00:19]}  Nxg5 {[%clk 0:00:08]} 39. Bxg5 {[%clk 0:00:20]}  Be5 {[%clk 0:00:08]} 40. Be3 {[%clk 0:00:17]}  Qe6 {[%clk 0:00:08]} 41. Nd3 {[%clk 0:00:16]}  Qxc4 {[%clk 0:00:07]} 42. Rxc4 {[%clk 0:00:17]}  Bd6 {[%clk 0:00:08]} 43. Nc5 {[%clk 0:00:17]}  Rb8 {[%clk 0:00:05]} 44. Rxd6 {[%clk 0:00:17]} 1-0


[Site "https://www.chess.com"]

[Event "Titled Tuesday Blitz October 04 Late 2022"]
[White "Tristan, Leonardo"]
[Black "Melkumyan, Hrant"]
[WhiteFideId "113816"]
[BlackFideId "13302485"]
[WhiteElo "2446"]
[BlackElo "2604"]
[Result "0-1"]
[Round "03"]
[TimeControl "180+1"]
[Date "2022.10.04"]
[WhiteClock "0:00:04"]
[BlackClock "0:00:15"]

1. d4 {[%clk 0:03:00]}  d5 {[%clk 0:02:58]} 2. Nf3 {[%clk 0:03:01]}  Nf6 {[%clk 0:02:58]} 3. Bf4 {[%clk 0:03:01]}  c5 {[%clk 0:02:55]} 4. e3 {[%clk 0:03:01]}  Nc6 {[%clk 0:02:55]} 5. Nbd2 {[%clk 0:03:01]}  e6 {[%clk 0:02:52]} 6. c3 {[%clk 0:03:00]}  Be7 {[%clk 0:02:51]} 7. Ne5 {[%clk 0:02:59]}  Nxe5 {[%clk 0:02:47]} 8. Bxe5 {[%clk 0:02:58]}  O-O {[%clk 0:02:46]} 9. Bd3 {[%clk 0:02:58]}  Nd7 {[%clk 0:02:40]} 10. Bf4 {[%clk 0:02:44]}  Qb6 {[%clk 0:02:24]} 11. Rb1 {[%clk 0:02:41]}  f5 {[%clk 0:02:19]} 12. O-O {[%clk 0:02:34]}  c4 {[%clk 0:02:19]} 13. Bc2 {[%clk 0:02:34]}  Qc6 {[%clk 0:02:19]} 14. f3 {[%clk 0:02:06]}  b5 {[%clk 0:02:18]} 15. e4 {[%clk 0:02:05]}  Nb6 {[%clk 0:02:10]} 16. Qe2 {[%clk 0:01:58]}  Bd6 {[%clk 0:02:06]} 17. Bxd6 {[%clk 0:01:37]}  Qxd6 {[%clk 0:02:07]} 18. exf5 {[%clk 0:01:36]}  exf5 {[%clk 0:02:07]} 19. f4 {[%clk 0:01:36]}  Bd7 {[%clk 0:02:03]} 20. Nf3 {[%clk 0:01:35]}  b4 {[%clk 0:02:03]} 21. Ne5 {[%clk 0:01:35]}  Ba4 {[%clk 0:01:57]} 22. Rf3 {[%clk 0:01:24]}  Bxc2 {[%clk 0:01:53]} 23. Qxc2 {[%clk 0:01:25]}  a5 {[%clk 0:01:53]} 24. Re1 {[%clk 0:01:24]}  a4 {[%clk 0:01:48]} 25. cxb4 {[%clk 0:01:14]}  Qxb4 {[%clk 0:01:46]} 26. Qf2 {[%clk 0:01:09]}  a3 {[%clk 0:01:39]} 27. Nc6 {[%clk 0:01:09]}  Qd6 {[%clk 0:01:33]} 28. Ne7+ {[%clk 0:01:08]}  Kh8 {[%clk 0:01:32]} 29. bxa3 {[%clk 0:01:08]}  Nd7 {[%clk 0:01:22]} 30. Qh4 {[%clk 0:00:57]}  Qf6 {[%clk 0:01:13]} 31. Qxf6 {[%clk 0:00:25]}  Nxf6 {[%clk 0:01:14]} 32. Re5 {[%clk 0:00:25]}  Rfc8 {[%clk 0:00:59]} 33. Nxd5 {[%clk 0:00:18]}  Ng4 {[%clk 0:00:33]} 34. Rc3 {[%clk 0:00:14]}  Nxe5 {[%clk 0:00:32]} 35. dxe5 {[%clk 0:00:14]}  Rab8 {[%clk 0:00:28]} 36. Kf2 {[%clk 0:00:12]}  Rd8 {[%clk 0:00:20]} 37. Nb4 {[%clk 0:00:10]}  Rd4 {[%clk 0:00:17]} 38. Ke3 {[%clk 0:00:08]}  Re4+ {[%clk 0:00:17]} 39. Kf3 {[%clk 0:00:08]}  Ra8 {[%clk 0:00:18]} 40. g4 {[%clk 0:00:08]}  g6 {[%clk 0:00:17]} 41. Nd5 {[%clk 0:00:08]}  Rd4 {[%clk 0:00:17]} 42. Ne3 {[%clk 0:00:07]}  fxg4+ {[%clk 0:00:16]} 43. Kxg4 {[%clk 0:00:07]}  Rd3 {[%clk 0:00:15]} 44. Rxd3 {[%clk 0:00:06]}  cxd3 {[%clk 0:00:16]} 45. Kf3 {[%clk 0:00:07]}  Rxa3 {[%clk 0:00:16]} 46. Nc4 {[%clk 0:00:07]}  Rxa2 {[%clk 0:00:14]} 47. Ke3 {[%clk 0:00:07]}  Rxh2 {[%clk 0:00:14]} 48. Kxd3 {[%clk 0:00:08]}  Kg8 {[%clk 0:00:15]} 49. Ke4 {[%clk 0:00:08]}  Kf7 {[%clk 0:00:15]} 50. Nb6 {[%clk 0:00:08]}  Ke6 {[%clk 0:00:15]} 51. Nd5 {[%clk 0:00:09]}  Re2+ {[%clk 0:00:15]} 52. Ne3 {[%clk 0:00:09]}  Ra2 {[%clk 0:00:16]} 53. Ng4 {[%clk 0:00:06]}  Ra4+ {[%clk 0:00:16]} 54. Kf3 {[%clk 0:00:07]}  h5 {[%clk 0:00:15]} 55. Ne3 {[%clk 0:00:07]}  Ra3 {[%clk 0:00:14]} 56. Ke4 {[%clk 0:00:07]}  Ra1 {[%clk 0:00:15]} 57. Nc2 {[%clk 0:00:06]}  Rh1 {[%clk 0:00:14]} 58. Nd4+ {[%clk 0:00:06]}  Kf7 {[%clk 0:00:14]} 59. f5 {[%clk 0:00:05]}  Rh4+ {[%clk 0:00:14]} 60. Kd5 {[%clk 0:00:05]}  Rxd4+ {[%clk 0:00:12]} 61. Kxd4 {[%clk 0:00:05]}  gxf5 {[%clk 0:00:13]} 62. Kd5 {[%clk 0:00:04]}  h4 {[%clk 0:00:14]} 63. Kd6 {[%clk 0:00:05]}  Ke8 {[%clk 0:00:14]} 64. Ke6 {[%clk 0:00:04]}  h3 {[%clk 0:00:15]} 0-1


[Site "https://www.chess.com"]

[Event "Titled Tuesday Blitz October 04 Late 2022"]
[White "Vlassov, Nikolai"]
[Black "Zierk, Steven"]
[WhiteFideId "4103360"]
[BlackFideId "2034255"]
[WhiteElo "2324"]
[BlackElo "2494"]
[Result "0-1"]
[Round "03"]
[TimeControl "180+1"]
[Date "2022.10.04"]
[WhiteClock "0:00:01"]
[BlackClock "0:00:11"]

1. e4 {[%clk 0:03:00]}  c6 {[%clk 0:02:59]} 2. d4 {[%clk 0:03:00]}  d5 {[%clk 0:02:58]} 3. e5 {[%clk 0:03:01]}  Bf5 {[%clk 0:02:57]} 4. Nf3 {[%clk 0:03:01]}  e6 {[%clk 0:02:56]} 5. Be2 {[%clk 0:03:01]}  c5 {[%clk 0:02:55]} 6. c4 {[%clk 0:03:00]}  dxc4 {[%clk 0:02:47]} 7. Bxc4 {[%clk 0:02:49]}  Nc6 {[%clk 0:02:42]} 8. Be3 {[%clk 0:02:11]}  cxd4 {[%clk 0:02:17]} 9. Nxd4 {[%clk 0:02:11]}  Nxd4 {[%clk 0:02:02]} 10. Qxd4 {[%clk 0:02:07]}  Qxd4 {[%clk 0:01:50]} 11. Bxd4 {[%clk 0:02:07]}  Bb4+ {[%clk 0:01:47]} 12. Nc3 {[%clk 0:02:06]}  Ne7 {[%clk 0:01:47]} 13. O-O {[%clk 0:02:00]}  O-O {[%clk 0:01:45]} 14. f4 {[%clk 0:01:47]}  Rfd8 {[%clk 0:01:40]} 15. Be3 {[%clk 0:01:39]}  Rac8 {[%clk 0:01:40]} 16. Bb3 {[%clk 0:01:36]}  Nc6 {[%clk 0:01:26]} 17. Rfd1 {[%clk 0:01:32]}  Bxc3 {[%clk 0:01:24]} 18. bxc3 {[%clk 0:01:32]}  b6 {[%clk 0:01:24]} 19. Kf2 {[%clk 0:01:22]}  Na5 {[%clk 0:01:14]} 20. Rxd8+ {[%clk 0:01:21]}  Rxd8 {[%clk 0:01:14]} 21. Rd1 {[%clk 0:01:20]}  Rxd1 {[%clk 0:01:14]} 22. Bxd1 {[%clk 0:01:20]}  Be4 {[%clk 0:01:14]} 23. Bb3 {[%clk 0:01:07]}  Kf8 {[%clk 0:01:13]} 24. g4 {[%clk 0:01:01]}  Ke7 {[%clk 0:01:12]} 25. h4 {[%clk 0:01:00]}  Kd7 {[%clk 0:01:12]} 26. Bc1 {[%clk 0:00:54]}  Kc6 {[%clk 0:01:09]} 27. Ke3 {[%clk 0:00:55]}  Bd5 {[%clk 0:01:08]} 28. Bc2 {[%clk 0:00:44]}  g6 {[%clk 0:01:03]} 29. a4 {[%clk 0:00:39]}  Bb3 {[%clk 0:00:59]} 30. Be4+ {[%clk 0:00:27]}  Kd7 {[%clk 0:00:57]} 31. f5 {[%clk 0:00:26]}  Ke8 {[%clk 0:00:34]} 32. h5 {[%clk 0:00:20]}  exf5 {[%clk 0:00:32]} 33. gxf5 {[%clk 0:00:19]}  gxh5 {[%clk 0:00:32]} 34. Bf3 {[%clk 0:00:16]}  h4 {[%clk 0:00:28]} 35. Bh5 {[%clk 0:00:17]}  h3 {[%clk 0:00:23]} 36. Kf2 {[%clk 0:00:15]}  Nc4 {[%clk 0:00:19]} 37. e6 {[%clk 0:00:15]}  Nd6 {[%clk 0:00:19]} 38. exf7+ {[%clk 0:00:12]}  Bxf7 {[%clk 0:00:18]} 39. Bg4 {[%clk 0:00:12]}  Ne4+ {[%clk 0:00:17]} 40. Kg1 {[%clk 0:00:11]}  Nxc3 {[%clk 0:00:16]} 41. a5 {[%clk 0:00:10]}  b5 {[%clk 0:00:12]} 42. Kh2 {[%clk 0:00:10]}  b4 {[%clk 0:00:11]} 43. Bd2 {[%clk 0:00:09]}  Nd5 {[%clk 0:00:11]} 44. Bd1 {[%clk 0:00:07]}  Kd7 {[%clk 0:00:09]} 45. Kxh3 {[%clk 0:00:08]}  Kc6 {[%clk 0:00:08]} 46. Bb3 {[%clk 0:00:08]}  Nf4+ {[%clk 0:00:07]} 47. Bxf4 {[%clk 0:00:08]}  Bxb3 {[%clk 0:00:08]} 48. Kg4 {[%clk 0:00:06]}  Kb5 {[%clk 0:00:08]} 49. Bc7 {[%clk 0:00:04]}  Bc4 {[%clk 0:00:08]} 50. Kg5 {[%clk 0:00:03]}  b3 {[%clk 0:00:09]} 51. Be5 {[%clk 0:00:03]}  Kxa5 {[%clk 0:00:10]} 52. Kh6 {[%clk 0:00:03]}  Kb4 {[%clk 0:00:10]} 53. f6 {[%clk 0:00:03]}  a5 {[%clk 0:00:10]} 54. Kxh7 {[%clk 0:00:01]}  a4 {[%clk 0:00:10]} 55. Bd6+ {[%clk 0:00:01]}  Kc3 {[%clk 0:00:10]} 56. Be5+ {[%clk 0:00:01]}  Kc2 {[%clk 0:00:11]} 57. Kg7 {[%clk 0:00:01]}  a3 {[%clk 0:00:11]} 58. f7 {[%clk 0:00:01]}  Bxf7 {[%clk 0:00:11]} 59. Kxf7 {[%clk 0:00:01]}  b2 {[%clk 0:00:11]} 0-1


[Site "https://www.chess.com"]

[Event "Titled Tuesday Blitz October 04 Late 2022"]
[White "miragha_yev"]
[Black "Nepomniachtchi, Ian"]
[BlackFideId "4168119"]
[WhiteElo "2776"]
[BlackElo "2781"]
[Result "0-1"]
[Round "03"]
[TimeControl "180+1"]
[Date "2022.10.04"]
[WhiteClock "0:00:15"]
[BlackClock "0:00:20"]

1. e4 {[%clk 0:03:00]}  c5 {[%clk 0:02:59]} 2. Nf3 {[%clk 0:03:00]}  e6 {[%clk 0:03:00]} 3. d4 {[%clk 0:02:57]}  cxd4 {[%clk 0:03:01]} 4. Nxd4 {[%clk 0:02:57]}  Nc6 {[%clk 0:03:02]} 5. Nc3 {[%clk 0:02:57]}  a6 {[%clk 0:03:02]} 6. Be2 {[%clk 0:02:56]}  Qc7 {[%clk 0:03:02]} 7. O-O {[%clk 0:02:56]}  Nf6 {[%clk 0:03:01]} 8. Be3 {[%clk 0:02:55]}  Bb4 {[%clk 0:02:55]} 9. Na4 {[%clk 0:02:55]}  Rb8 {[%clk 0:02:50]} 10. Nxc6 {[%clk 0:02:46]}  bxc6 {[%clk 0:02:50]} 11. Qd4 {[%clk 0:02:37]}  Bd6 {[%clk 0:02:45]} 12. f4 {[%clk 0:02:27]}  Rb4 {[%clk 0:02:45]} 13. c4 {[%clk 0:02:27]}  Rxa4 {[%clk 0:02:30]} 14. e5 {[%clk 0:02:27]}  Be7 {[%clk 0:02:27]} 15. exf6 {[%clk 0:02:25]}  Bxf6 {[%clk 0:02:26]} 16. Qd2 {[%clk 0:02:25]}  c5 {[%clk 0:02:07]} 17. a3 {[%clk 0:02:12]}  d5 {[%clk 0:01:54]} 18. b3 {[%clk 0:01:38]}  Ra5 {[%clk 0:01:51]} 19. Ra2 {[%clk 0:01:34]}  O-O {[%clk 0:01:49]} 20. cxd5 {[%clk 0:01:27]}  exd5 {[%clk 0:01:46]} 21. Qd1 {[%clk 0:01:22]}  c4 {[%clk 0:01:41]} 22. b4 {[%clk 0:00:54]}  Rb5 {[%clk 0:01:39]} 23. Bd4 {[%clk 0:00:55]}  Bxd4+ {[%clk 0:01:34]} 24. Qxd4 {[%clk 0:00:56]}  Qb6 {[%clk 0:01:34]} 25. Rd1 {[%clk 0:00:54]}  Qxd4+ {[%clk 0:01:18]} 26. Rxd4 {[%clk 0:00:55]}  Be6 {[%clk 0:01:18]} 27. Bf3 {[%clk 0:00:50]}  a5 {[%clk 0:01:14]} 28. Rad2 {[%clk 0:00:43]}  axb4 {[%clk 0:01:13]} 29. axb4 {[%clk 0:00:44]}  Rxb4 {[%clk 0:01:03]} 30. Bxd5 {[%clk 0:00:44]}  c3 {[%clk 0:01:00]} 31. Rxb4 {[%clk 0:00:45]}  cxd2 {[%clk 0:00:59]} 32. Bf3 {[%clk 0:00:43]}  Rd8 {[%clk 0:00:58]} 33. Rb1 {[%clk 0:00:43]}  Ba2 {[%clk 0:00:52]} 34. Ra1 {[%clk 0:00:38]}  Bb3 {[%clk 0:00:51]} 35. Bd1 {[%clk 0:00:38]}  Bc4 {[%clk 0:00:38]} 36. Kf2 {[%clk 0:00:39]}  g6 {[%clk 0:00:37]} 37. Be2 {[%clk 0:00:34]}  Kg7 {[%clk 0:00:33]} 38. g3 {[%clk 0:00:25]}  h5 {[%clk 0:00:32]} 39. Bd1 {[%clk 0:00:22]}  Re8 {[%clk 0:00:29]} 40. Bf3 {[%clk 0:00:19]}  Bb3 {[%clk 0:00:27]} 41. Rb1 {[%clk 0:00:17]}  Bc2 {[%clk 0:00:26]} 42. Ra1 {[%clk 0:00:17]}  Re7 {[%clk 0:00:25]} 43. h3 {[%clk 0:00:15]}  Rc7 {[%clk 0:00:23]} 44. Bd1 {[%clk 0:00:15]}  Bf5 {[%clk 0:00:21]} 45. Ke3 {[%clk 0:00:15]}  Rc3+ {[%clk 0:00:20]} 46. Kf2 {[%clk 0:00:15]}  Rc1 {[%clk 0:00:20]} 0-1


[Site "https://www.chess.com"]